fUSD/lending_fUSD_20251025
["ID","MTS","AMOUNT","RATE_DAILY","PERIOD"]
[392372255,1761407527041,-500.0,0.00036164,9]
[392372256,1761407527057,-221.08610328,0.00036164,9]
[392372257,1761407527072,-419.69351033,0.00036164,9]
[392372258,1761407527089,-500.0,0.00036164,9]
[392372259,1761407527103,-647.33,0.00036164,9]
[392372260,1761407527117,-601.16,0.00036164,9]
[392372261,1761407527132,-500.0,0.00036164,9]
[392372262,1761407527147,-500.0,0.00036164,9]
[392372263,1761407527160,-632.84464386,0.00036164,9]
[392372264,1761407527175,-504.95,0.00036164,9]
[392372265,1761407527189,-500.0,0.00036164,9]
[392372266,1761407527203,-2016.49,0.00036164,9]
[392372267,1761407527217,-500.0,0.00036164,9]
[392372268,1761407527233,-500.0,0.00036164,9]
[392372269,1761407527247,-544.29,0.00036164,9]
[392372270,1761407527262,-500.0,0.00036164,9]
[392372271,1761407527277,-624.17,0.00036164,9]
[392372272,1761407527291,-500.0,0.00036164,9]
[392372273,1761407527305,-1578.34,0.00036164,9]
[392372274,1761407527320,-500.0,0.00036164,9]
[392372275,1761407527337,-500.0,0.00036164,9]
[392372276,1761407527351,-1038.04,0.00036164,9]
[392372277,1761407527366,-868.13,0.00036164,9]
[392372278,1761407527380,-507.50044643,0.00036164,9]
[392372279,1761407527394,-500.0,0.00036164,9]
[392372280,1761407527408,-500.0,0.00036164,9]
[392372281,1761407527423,-917.77,0.00036164,9]
[392372282,1761407527438,-645.71,0.00036164,9]
[392372283,1761407527452,-890.81,0.00036164,9]
[392372284,1761407527466,-500.0,0.00036164,9]
[392372285,1761407527480,-500.0,0.00036164,9]
[392372286,1761407527495,-500.0,0.00036164,9]
[392372287,1761407527509,-500.0,0.00036164,9]
[392372288,1761407527524,-500.0,0.00036164,9]
[392372289,1761407527539,-500.0,0.00036164,9]
[392372290,1761407527552,-543.66,0.00036164,9]
[392372291,1761407527568,-500.0,0.00036164,9]
[392372292,1761407527583,-500.0,0.00036164,9]
[392372293,1761407527597,-500.0,0.00036164,9]
[392372294,1761407527611,-500.0,0.00036164,9]
[392372295,1761407527626,-500.0,0.00036164,9]
[392372296,1761407527640,-620.95,0.00036164,9]
[392372297,1761407527654,-501.95,0.00036164,9]
[392372298,1761407527668,-500.0,0.00036164,9]
[392372299,1761407527682,-449.57317167,0.00036164,2]
[392372300,1761407527696,-500.0,0.00036164,9]
[392372301,1761407527711,-500.0,0.00036164,9]
[392372302,1761407527726,-500.0,0.00036164,9]
[392372303,1761407527936,-6415.98,0.00036164,9]
[392372304,1761407527961,-500.0,0.00036164,9]
[392372305,1761407527971,-1885.41,0.00036164,9]
[392372306,1761407527981,-548.9,0.00036164,9]
[392372307,1761407527990,-500.0,0.00036164,9]
[392372308,1761407528000,-500.0,0.00036164,9]
[392372309,1761407528009,-1425.0,0.00036185,2]
[392372310,1761407528018,-1000.0,0.00036199,7]
[392372311,1761407528027,-3669.98,0.000362,2]
[392372312,1761407528038,-178.15,0.00036244,2]
[392372313,1761407528047,-1425.0,0.00036245,2]
[392372314,1761407528057,-10021.04961313,0.0003625,2]
[392372315,1761407528066,-1425.0,0.00036257,2]
[392372316,1761407528077,-1449.15601945,0.00036317,2]
[392372317,1761407528086,-1000.0,0.00036345,2]
[392372318,1761407528096,-1425.0,0.00036356,2]
[392372319,1761407528106,-160.18,0.00036358,2]
[392372320,1761407528115,-227.12346033,0.00036363,120]
[392372321,1761407528126,-270.5735801,0.00036363,120]
[392372322,1761407528136,-1000.0,0.00036373,7]
[392372323,1761407528145,-169.0,0.00036386,30]
[392372324,1761407528156,-167.92851412,0.0003639,120]
[392372325,1761407528165,-2500.0,0.000364,120]
[392372326,1761407528175,-946.31318,0.000364,21]
[392372327,1761407528185,-500.0,0.00036401,7]
[392372328,1761407528195,-1200.0,0.00036401,7]
[392372329,1761407528205,-500.0,0.00036401,7]
[392372330,1761407528214,-156.905914,0.00036438,9]
[392372331,1761407528224,-910.887729,0.00036438,9]
[392372332,1761407528234,-567.385756,0.00036438,9]
[392372333,1761407528243,-500.0,0.00036438,9]
[392372334,1761407528253,-500.0,0.00036438,9]
[392372335,1761407528263,-500.0,0.00036438,9]
[392372336,1761407528272,-500.0,0.00036438,9]
[392372337,1761407528281,-500.0,0.00036438,9]
[392372338,1761407528291,-500.0,0.00036438,9]
[392372339,1761407528301,-500.0,0.00036438,9]
[392372340,1761407528311,-500.0,0.00036438,9]
[392372341,1761407528322,-500.0,0.00036438,9]
[392372342,1761407528332,-500.0,0.00036438,9]
[392372343,1761407528341,-500.0,0.00036438,9]
[392372344,1761407528351,-500.0,0.00036438,9]
[392372345,1761407528360,-781.72,0.00036438,9]
[392372346,1761407528369,-625.09,0.00036438,9]
[392372347,1761407528378,-500.0,0.00036438,9]
[392372348,1761407528388,-300.95152771,0.00036438,9]
[392372349,1761407528404,-500.0,0.00036438,9]
[392372350,1761407528414,-500.0,0.00036438,9]
[392372351,1761407528423,-500.0,0.00036438,9]
[392372352,1761407528435,-572.98675999,0.00036438,9]
[392372353,1761407528450,-500.0,0.00036438,9]
[392372354,1761407528459,-500.0,0.00036438,9]
[392372355,1761407528468,-500.0,0.00036438,9]
[392372356,1761407528478,-563.33,0.00036438,9]
[392372357,1761407528487,-500.0,0.00036438,9]
[392372358,1761407528496,-500.0,0.00036438,9]
[392372359,1761407528506,-500.0,0.00036438,9]
[392372360,1761407528515,-816.06,0.00036438,9]
[392372361,1761407528525,-177.73788113,0.00036438,9]
[392372362,1761407528534,-500.0,0.00036438,9]
[392372363,1761407528544,-500.0,0.00036438,9]
[392372364,1761407528554,-500.0,0.00036438,9]
[392372365,1761407528563,-500.0,0.00036438,9]
[392372366,1761407528572,-500.0,0.00036438,9]
[392372367,1761407528582,-500.0,0.00036438,9]
[392372368,1761407528591,-589.76,0.00036438,9]
[392372369,1761407528600,-500.0,0.00036438,9]
[392372370,1761407528609,-500.0,0.00036438,9]
[392372371,1761407528619,-500.0,0.00036438,9]
[392372372,1761407528628,-272.56134213,0.00036438,9]
[392372373,1761407528638,-500.0,0.00036438,9]
[392372374,1761407528648,-500.0,0.00036438,9]
[392372375,1761407528657,-648.01,0.00036438,9]
[392372376,1761407528667,-526.85,0.00036438,9]
[392372377,1761407528677,-627.18,0.00036438,9]
[392372378,1761407528687,-500.0,0.00036438,9]
[392372379,1761407528696,-366.03222711,0.00036438,9]
[392372380,1761407528706,-276.27209112,0.00036438,9]
[392372381,1761407528716,-500.0,0.00036438,9]
[392372382,1761407528725,-4318.47,0.00036438,2]
[392372383,1761407528735,-500.0,0.00036438,9]
[392372384,1761407528745,-500.0,0.00036438,9]
[392372385,1761407528755,-500.0,0.00036438,9]
[392372386,1761407528765,-729.5,0.00036438,2]
[392372387,1761407528774,-500.0,0.00036438,9]
[392372388,1761407528784,-500.0,0.00036438,9]
[392372389,1761407528793,-500.0,0.00036438,9]
[392372390,1761407528803,-500.0,0.00036438,9]
[392372391,1761407528812,-546.95,0.00036438,9]
[392372392,1761407528823,-500.0,0.00036438,9]
[392372393,1761407528831,-500.0,0.00036438,9]
[392372394,1761407528841,-500.0,0.00036438,9]
[392372395,1761407528850,-500.0,0.00036438,9]
[392372397,1761407528860,-500.0,0.00036438,9]
[392372398,1761407528870,-527.81,0.00036438,9]
[392372399,1761407528879,-512.17,0.00036438,9]
[392372400,1761407528888,-500.0,0.00036438,9]
[392372401,1761407528899,-500.0,0.00036438,9]
[392372402,1761407528908,-500.0,0.00036438,9]
[392372403,1761407528918,-500.0,0.00036438,9]
[392372404,1761407528928,-534.68,0.00036438,9]
[392372405,1761407528937,-500.0,0.00036438,9]
[392372406,1761407528947,-500.0,0.00036438,9]
[392372407,1761407528956,-500.0,0.00036438,9]
[392372408,1761407528966,-500.0,0.00036438,9]
[392372409,1761407528975,-500.0,0.00036438,9]
[392372410,1761407528987,-500.0,0.00036438,9]
[392372411,1761407529001,-500.0,0.00036438,9]
[392372412,1761407529010,-500.0,0.00036438,9]
[392372413,1761407529020,-500.0,0.00036438,9]
[392372414,1761407529030,-197.40768043,0.00036438,9]
[392372415,1761407529040,-277.49832981,0.00036438,2]
[392372416,1761407529049,-238.74688479,0.00036438,9]
[392372417,1761407529059,-500.0,0.00036438,9]
[392372418,1761407529069,-500.0,0.00036438,9]
[392372419,1761407529078,-500.0,0.00036438,9]
[392372420,1761407529088,-500.0,0.00036438,9]
[392372421,1761407529098,-500.0,0.00036438,9]
[392372422,1761407529107,-500.0,0.00036438,9]
[392372423,1761407529118,-500.0,0.00036438,9]
[392372424,1761407529128,-500.0,0.00036438,9]
[392372425,1761407529138,-502.39,0.00036438,9]
[392372426,1761407529147,-589.19781873,0.00036438,9]
[392372427,1761407529157,-500.0,0.00036438,9]
[392372428,1761407529167,-500.0,0.00036438,9]
[392372429,1761407529177,-500.0,0.00036438,9]
[392372430,1761407529187,-500.0,0.00036438,9]
[392372431,1761407529197,-524.93,0.00036438,9]
[392372432,1761407529207,-500.0,0.00036438,9]
[392372433,1761407529216,-500.0,0.00036438,9]
[392372434,1761407529225,-500.0,0.00036438,9]
[392372435,1761407529235,-537.16,0.00036438,9]
[392372436,1761407529245,-500.0,0.00036438,9]
[392372437,1761407529255,-555.59,0.00036438,9]
[392372438,1761407529264,-500.0,0.00036438,9]
[392372439,1761407529274,-675.84,0.00036438,9]
[392372440,1761407529284,-500.0,0.00036438,9]
[392372441,1761407529294,-500.0,0.00036438,9]
[392372442,1761407529303,-500.0,0.00036438,9]
[392372443,1761407529314,-500.0,0.00036438,9]
[392372444,1761407529323,-567.53,0.00036438,9]
[392372445,1761407529332,-500.0,0.00036438,9]
[392372446,1761407529342,-295.21574964,0.00036438,9]
[392372447,1761407529353,-500.0,0.00036438,9]
[392372448,1761407529363,-500.0,0.00036438,9]
[392372449,1761407529373,-500.0,0.00036438,9]
[392372450,1761407529383,-500.0,0.00036438,9]
[392372451,1761407529392,-500.0,0.00036438,9]
[392372452,1761407529403,-1555.41,0.00036438,9]
[392372453,1761407529413,-162.48903909,0.00036438,9]
[392372454,1761407529422,-500.0,0.00036438,9]
[392372455,1761407529432,-500.0,0.00036438,9]
[392372456,1761407529441,-709.21,0.00036438,9]
[392372457,1761407529451,-500.0,0.00036438,9]
[392372458,1761407529461,-500.0,0.00036438,9]
[392372459,1761407529471,-500.0,0.00036438,9]
[392372460,1761407529482,-942.51,0.00036438,9]
[392372461,1761407529492,-500.0,0.00036438,9]
[392372462,1761407529503,-500.0,0.00036438,9]
[392372463,1761407529515,-15600.96,0.00036438,9]
[392372464,1761407529524,-2147.12,0.00036438,9]
[392372465,1761407529534,-500.0,0.00036438,9]
[392372466,1761407529543,-500.0,0.00036438,9]
[392372467,1761407529553,-500.0,0.00036438,9]
[392372468,1761407529565,-500.0,0.00036438,9]
[392372469,1761407529576,-602.26,0.00036438,9]
[392372470,1761407529587,-500.0,0.00036438,9]
[392372471,1761407529598,-553.68,0.00036438,9]
[392372472,1761407529609,-500.0,0.00036438,9]
[392372473,1761407529620,-500.0,0.00036438,9]
[392372474,1761407529630,-500.0,0.00036438,9]
[392372475,1761407529640,-500.0,0.00036438,9]
[392372476,1761407529650,-500.0,0.00036438,9]
[392372477,1761407529661,-500.0,0.00036438,9]
[392372478,1761407529670,-500.0,0.00036438,9]
[392372479,1761407529679,-1157.24,0.00036438,9]
[392372480,1761407529689,-500.0,0.00036438,9]
[392372481,1761407529698,-899.55,0.00036438,9]
[392372482,1761407529708,-500.0,0.00036438,9]
[392372483,1761407529718,-500.0,0.00036438,9]
[392372484,1761407529728,-623.63725463,0.00036438,9]
[392372485,1761407529738,-500.0,0.00036438,9]
[392372486,1761407529747,-558.03,0.00036438,9]
[392372487,1761407529758,-657.01,0.00036438,9]
[392372488,1761407529768,-500.0,0.00036438,9]
[392372489,1761407529778,-500.0,0.00036438,9]
[392372490,1761407529788,-496.73399907,0.00036438,9]
[392372491,1761407529799,-500.0,0.00036438,9]
[392372492,1761407529811,-500.0,0.00036438,9]
[392372493,1761407529821,-500.0,0.00036438,9]
[392372494,1761407529831,-500.0,0.00036438,9]
[392372495,1761407529841,-500.0,0.00036438,9]
[392372496,1761407529851,-500.0,0.00036438,9]
[392372497,1761407529861,-206.03448129,0.00036438,9]
[392372498,1761407529871,-500.0,0.00036438,9]
[392372499,1761407529880,-500.0,0.00036438,9]
[392372500,1761407529890,-500.0,0.00036438,7]
[392372501,1761407529900,-500.0,0.00036438,9]
[392372502,1761407529910,-500.0,0.00036438,9]
[392372503,1761407529919,-500.0,0.00036438,9]
[392372504,1761407529928,-500.0,0.00036438,9]
[392372505,1761407529938,-500.0,0.00036438,9]
[392372506,1761407529947,-307.85185533,0.00036438,9]
[392372507,1761407529958,-1103.76,0.00036438,9]
[392372508,1761407529969,-283.82272808,0.00036438,9]
[392372509,1761407529978,-586.96,0.00036438,9]
[392372510,1761407529988,-677.29,0.00036438,9]
[392372511,1761407529997,-500.0,0.00036438,9]
[392372512,1761407530007,-500.0,0.00036438,9]
[392372513,1761407530016,-601.98,0.00036438,9]
[392372514,1761407530026,-755.77,0.00036438,9]
[392372515,1761407530035,-27349.58,0.00036438,9]
[392372516,1761407530045,-3162.18,0.00036438,9]
[392372517,1761407530056,-500.0,0.00036438,9]
[392372518,1761407530065,-500.0,0.00036438,9]
[392372519,1761407530075,-541.75,0.00036438,9]
[392372520,1761407530085,-500.0,0.00036438,9]
[392372521,1761407530095,-500.0,0.00036438,9]
[392372522,1761407530104,-500.0,0.00036438,9]
[392372523,1761407530114,-500.0,0.00036438,9]
[392372524,1761407530124,-568.48,0.00036438,9]
[392372525,1761407530133,-793.74,0.00036438,9]
[392372526,1761407530143,-612.62,0.00036438,9]
[392372527,1761407530152,-580.5,0.00036438,9]
[392372528,1761407530162,-500.0,0.00036438,9]
[392372529,1761407530172,-500.0,0.00036438,9]
[392372530,1761407530181,-512.1,0.00036438,9]
[392372531,1761407530191,-500.0,0.00036438,9]
[392372532,1761407530200,-500.0,0.00036438,9]
[392372533,1761407530210,-500.0,0.00036438,9]
[392372534,1761407530219,-500.0,0.00036438,9]
[392372535,1761407530228,-500.0,0.00036438,9]
[392372536,1761407530238,-500.0,0.00036438,9]
[392372537,1761407530248,-500.0,0.00036438,9]
[392372538,1761407530257,-500.0,0.00036438,9]
[392372539,1761407530267,-647.33,0.00036438,9]
[392372540,1761407530276,-500.0,0.00036438,9]
[392372541,1761407530286,-601.16,0.00036438,9]
[392372542,1761407530295,-500.0,0.00036438,9]
[392372543,1761407530305,-500.0,0.00036438,9]
[392372544,1761407530314,-504.95,0.00036438,9]
[392372545,1761407530328,-478.60728667,0.00036438,9]
[392372546,1761407530337,-2016.49,0.00036438,9]
[392372547,1761407530348,-500.0,0.00036438,9]
[392372548,1761407530358,-500.0,0.00036438,9]
[392372549,1761407530370,-544.29,0.00036438,9]
[392372550,1761407530380,-500.0,0.00036438,9]
[392372551,1761407530390,-624.17,0.00036438,9]
[392372552,1761407530401,-500.0,0.00036438,9]
[392372553,1761407530410,-1578.34,0.00036438,9]
[392372554,1761407530420,-500.0,0.00036438,9]
[392372555,1761407530429,-500.0,0.00036438,9]
[392372556,1761407530439,-1038.04,0.00036438,9]
[392372557,1761407530448,-868.13,0.00036438,9]
[392372558,1761407530458,-500.0,0.00036438,9]
[392372559,1761407530468,-500.0,0.00036438,9]
[392372560,1761407530478,-917.77,0.00036438,9]
[392372561,1761407530488,-645.71,0.00036438,9]
[392372562,1761407530498,-890.81,0.00036438,9]
[392372563,1761407530508,-500.0,0.00036438,9]
[392372564,1761407530518,-500.0,0.00036438,9]
[392372565,1761407530528,-500.0,0.00036438,9]
[392372566,1761407530537,-500.0,0.00036438,9]
[392372567,1761407530547,-500.0,0.00036438,9]
[392372568,1761407530557,-500.0,0.00036438,9]
[392372569,1761407530566,-543.66,0.00036438,9]
[392372570,1761407530576,-500.0,0.00036438,9]
[392372571,1761407530585,-554.00292896,0.00036438,9]
[392372572,1761407530595,-500.0,0.00036438,9]
[392372573,1761407530604,-500.0,0.00036438,9]
[392372574,1761407530614,-500.0,0.00036438,9]
[392372575,1761407530624,-620.95,0.00036438,9]
[392372576,1761407530633,-501.95,0.00036438,9]
[392372577,1761407530643,-500.0,0.00036438,9]
[392372578,1761407530652,-500.0,0.00036438,9]
[392372579,1761407530662,-500.0,0.00036438,9]
[392372580,1761407530671,-500.0,0.00036438,9]
[392372581,1761407530680,-6415.98,0.00036438,9]
[392372582,1761407530690,-500.0,0.00036438,9]
[392372583,1761407530699,-1885.41,0.00036438,9]
[392372584,1761407530866,-548.9,0.00036438,9]
[392372585,1761407530877,-500.0,0.00036438,9]
[392372586,1761407530887,-500.0,0.00036438,9]
[392372587,1761407530896,-506.0,0.00036438,2]
[392372588,1761407530905,-1425.0,0.0003644,2]
[392372589,1761407530915,-1000.0,0.0003648,7]
[392372590,1761407530924,-176.0,0.000365,30]
[392372591,1761407530934,-175.0,0.000365,30]
[392372592,1761407530944,-175.0,0.000365,30]
[392372593,1761407530953,-175.0,0.000365,30]
[392372594,1761407530963,-175.0,0.000365,30]
[392372595,1761407530972,-158.0,0.000365,30]
[392372596,1761407530982,-155.0,0.000365,30]
[392372597,1761407530991,-155.0,0.000365,30]
[392372598,1761407531000,-155.0,0.000365,30]
[392372599,1761407531010,-155.0,0.000365,30]
[392372600,1761407531020,-155.0,0.000365,30]
[392372601,1761407531030,-478.01045982,0.00036512,2]
[392372602,1761407531039,-160.02458894,0.00036512,15]
[392372603,1761407531048,-1000.0,0.00036516,7]
[392372604,1761407531058,-544.6965,0.00036521,3]
[392372605,1761407531067,-1425.0,0.00036547,2]
[392372606,1761407531077,-813.82215,0.0003656,2]
[392372607,1761407531087,-4644.05431057,0.00036568,30]
[392372608,1761407531096,-276.0,0.00036568,2]
[392372609,1761407531106,-56505.14,0.00036568,2]
[392372610,1761407531115,-1221.0,0.00036568,4]
[392372611,1761407531124,-2002.24383206,0.00036568,4]
[392372612,1761407531134,-6900.47506939,0.00036568,4]
[392372613,1761407531143,-5293.55320574,0.00036568,4]
[392372614,1761407531152,-49763.71098645,0.00036568,2]
[392372615,1761407531162,-7245.21865386,0.00036568,15]
[392372617,1761407531171,-66426.44791655,0.00036568,2]
[392372618,1761407531180,-1210.0,0.00036568,2]
[392372619,1761407531189,-714.15685515,0.00036568,2]
[392372620,1761407531198,-367.74091364,0.00036568,2]
[392372621,1761407531207,-353.84729601,0.00036568,2]
[392372622,1761407531216,-1292.59498642,0.00036568,2]
[392372623,1761407531225,-2828.82253796,0.00036568,2]
[392372624,1761407531234,-23617.14098158,0.00036568,2]
[392372625,1761407531244,-6338.99644916,0.00036568,7]
[392372626,1761407531253,-154254.60503661,0.00036568,10]
[392372627,1761407531262,-49909.97999963,0.00036568,2]
[392372628,1761407531271,-2144.83251629,0.00036568,2]
[392372629,1761407531280,-14712.68921322,0.00036568,2]
[392372630,1761407531289,-10799.82349699,0.00036568,3]
[392372631,1761407531299,-5287.33351888,0.00036568,2]
[392372632,1761407531308,-374.7971388,0.00036568,2]
[392372633,1761407531317,-2398.42838159,0.00036568,2]
[392372634,1761407531327,-150.0,0.00036568,30]
[392372635,1761407531336,-59202.57845023,0.0003658,2]
[392372636,1761407531345,-1425.0,0.00036582,2]
[392372637,1761407531354,-1425.0,0.00036593,2]
[392372638,1761407531364,-1000.0,0.00036599,7]
[392372639,1761407531373,-1000.0,0.00036599,8]
[392372640,1761407531382,-1000.0,0.00036599,14]
[392372641,1761407531391,-500.0,0.00036599,5]
[392372642,1761407531400,-50000.0,0.000366,120]
[392372643,1761407531409,-50000.0,0.000366,120]
[392372644,1761407531420,-50000.0,0.000366,120]
[392372645,1761407531429,-1700.0,0.000366,30]
[392372646,1761407531438,-232.43642258,0.000366,30]
[392372647,1761407531447,-41172.8006578,0.00036602,30]
[392372648,1761407531456,-524.30417665,0.00036602,30]
[392372649,1761407531465,-200.0,0.00036605,2]
[392372650,1761407531475,-330382.765028,0.00036608,30]
[392372651,1761407531484,-373942.217273,0.00036608,30]
[392372652,1761407531493,-200.0,0.00036608,2]
[392372653,1761407531503,-813.82214,0.00036608,2]
[392372654,1761407531513,-200.0,0.00036608,2]
[392372655,1761407531523,-4573433.93,0.00036612,30]
[392372656,1761407531532,-8650.3216406,0.00036612,30]
[392372657,1761407531542,-53294.57,0.00036612,12]
[392372658,1761407531551,-761.24434559,0.00036612,2]
[392372659,1761407531561,-92574.20582199,0.00036612,2]
[392372660,1761407531570,-653.41493,0.00036614,30]
[392372661,1761407531579,-694.5,0.00036614,30]
[392372662,1761407531588,-250.0,0.00036618,30]
[392372663,1761407531598,-250.0,0.00036618,30]
[392372664,1761407531607,-250.0,0.00036618,30]
[392372665,1761407531616,-250.0,0.00036618,30]
[392372666,1761407531626,-1000.0,0.00036619,2]
[392372667,1761407531635,-158.67,0.00036623,2]
[392372668,1761407531644,-3018.0,0.00036641,30]
[392372669,1761407531654,-1208.02134994,0.0003667,2]
[392372670,1761407531663,-700.0,0.0003667,2]
[392372671,1761407531673,-700.0,0.0003667,2]
[392372672,1761407531682,-688.0,0.0003667,30]
[392372673,1761407531691,-53162.98977881,0.0003667,30]
[392372674,1761407531701,-266.14826111,0.0003667,120]
[392372675,1761407531710,-2147.0,0.00036671,30]
[392372676,1761407531720,-184.4505,0.00036673,2]
[392372677,1761407531729,-3000.0,0.00036673,30]
[392372678,1761407531738,-151.0,0.00036674,14]
[392372679,1761407531748,-2027.33460977,0.00036675,30]
[392372680,1761407531758,-500.0,0.00036676,120]
[392372681,1761407531768,-511.354889,0.00036676,120]
[392372682,1761407531778,-500.0,0.00036676,120]
[392372683,1761407531788,-1000.0,0.00036678,2]
[392372684,1761407531799,-877.96591361,0.000367,30]
[392372685,1761407531808,-526.17,0.000367,30]
[392372686,1761407531819,-1249.331694,0.000367,3]
[392372687,1761407531828,-741.6,0.000367,14]
[392372688,1761407531838,-157.22,0.000367,60]
[392372689,1761407531848,-981.0,0.000367,2]
[392372690,1761407531858,-303.0,0.000367,2]
[392372691,1761407531868,-10000.0,0.000367,30]
[392372692,1761407531878,-3359.10196142,0.00036704,30]
[392372693,1761407531889,-392.0906599,0.00036704,30]
[392372694,1761407531898,-150.0,0.00036705,30]
[392372695,1761407531908,-259.16325542,0.00036705,30]
[392372696,1761407531917,-237.0,0.00036709,30]
[392372697,1761407531926,-150.0,0.00036709,30]
[392372698,1761407531935,-150.0,0.00036709,30]
[392372699,1761407531945,-150.0,0.00036709,30]
[392372700,1761407531954,-295.55100722,0.00036709,30]
[392372701,1761407531964,-1000.0,0.00036709,30]
[392372702,1761407531975,-510.29426208,0.00036712,13]
[392372703,1761407531985,-151.667609,0.00036712,9]
[392372704,1761407531996,-152.637139,0.00036712,9]
[392372705,1761407532006,-156.905914,0.00036712,9]
[392372706,1761407532017,-910.887729,0.00036712,9]
[392372707,1761407532027,-567.385756,0.00036712,9]
[392372708,1761407532035,-500.0,0.00036712,9]
[392372709,1761407532045,-500.0,0.00036712,9]
[392372710,1761407532055,-587.67321112,0.00036712,9]
[392372711,1761407532064,-500.0,0.00036712,9]
[392372712,1761407532074,-500.0,0.00036712,9]
[392372713,1761407532083,-500.0,0.00036712,9]
[392372714,1761407532093,-500.0,0.00036712,9]
[392372715,1761407532103,-500.0,0.00036712,9]
[392372716,1761407532111,-500.0,0.00036712,9]
[392372717,1761407532120,-500.0,0.00036712,9]
[392372718,1761407532130,-500.0,0.00036712,9]
[392372719,1761407532139,-573.51330092,0.00036712,9]
[392372720,1761407532148,-781.72,0.00036712,9]
[392372721,1761407532157,-625.09,0.00036712,9]
[392372722,1761407532166,-500.0,0.00036712,9]
[392372723,1761407532180,-500.0,0.00036712,9]
[392372724,1761407532189,-500.0,0.00036712,9]
[392372725,1761407532200,-500.0,0.00036712,9]
[392372726,1761407532211,-500.0,0.00036712,9]
[392372727,1761407532220,-500.0,0.00036712,9]
[392372728,1761407532230,-153.52785155,0.00036712,9]
[392372729,1761407532239,-563.33,0.00036712,9]
[392372730,1761407532248,-500.0,0.00036712,9]
[392372731,1761407532258,-500.0,0.00036712,9]
[392372732,1761407532268,-500.0,0.00036712,9]
[392372733,1761407532277,-816.06,0.00036712,9]
[392372734,1761407532286,-500.0,0.00036712,9]
[392372735,1761407532299,-500.0,0.00036712,9]
[392372736,1761407532310,-500.0,0.00036712,9]
[392372737,1761407532324,-500.0,0.00036712,9]
[392372738,1761407532333,-500.0,0.00036712,9]
[392372739,1761407532344,-500.0,0.00036712,9]
[392372740,1761407532353,-589.76,0.00036712,9]
[392372741,1761407532362,-500.0,0.00036712,9]
[392372742,1761407532371,-484.20530493,0.00036712,9]
[392372743,1761407532380,-185.08850195,0.00036712,9]
[392372744,1761407532390,-582.61664975,0.00036712,9]
[392372745,1761407532399,-500.0,0.00036712,9]
[392372746,1761407532409,-648.01,0.00036712,9]
[392372747,1761407532419,-526.85,0.00036712,9]
[392372748,1761407532428,-627.18,0.00036712,9]
[392372749,1761407532438,-500.0,0.00036712,9]
[392372750,1761407532448,-500.0,0.00036712,9]
[392372751,1761407532456,-4318.47,0.00036712,2]
[392372752,1761407532466,-500.0,0.00036712,9]
[392372753,1761407532474,-500.0,0.00036712,9]
[392372754,1761407532484,-500.0,0.00036712,9]
[392372755,1761407532493,-729.5,0.00036712,2]
[392372756,1761407532502,-500.0,0.00036712,9]